bitfinex/quotes_SOLUSD_20260221
["timestamp","ask_amount","ask_price","bid_price","bid_amount"]
[1771707741662,2.72566148,85.609,85.58,5.95996005]
[1771707741858,2.72566148,85.609,85.581,2.6634825]
[1771707748562,2.72566148,85.609,85.59,2.38424127]
[1771707749259,2.72566148,85.607,85.582,2.6634825]
[1771707751575,2.72566148,85.607,85.582,14.34814118]
[1771707751771,2.72566148,85.607,85.583,2.6634825]
[1771707752065,2.72566148,85.607,85.59,2.6634825]
[1771707752277,2.72566148,85.607,85.582,14.34814118]
[1771707753152,2.72566148,85.607,85.583,2.6634825]
[1771707756272,2.72566148,85.605,85.583,2.6634825]
[1771707759274,2.73315304,85.61,85.591,2.80310469]
[1771707760573,2.73315304,85.599,85.572,2.80310469]
[1771707760778,2.73315304,85.599,85.567,2.80310469]
[1771707760987,2.73315304,85.597,85.561,2.80310469]
[1771707761678,2.73315304,85.579,85.553,2.80310469]
[1771707761858,2.73315304,85.579,85.548,11.6893018]
[1771707762566,2.73315304,85.579,85.545,2.80310469]
[1771707762772,2.73315304,85.579,85.545,14.49273868]
[1771707763079,2.73315304,85.579,85.546,2.80310469]
[1771707763978,2.73315304,85.579,85.547,11.68948063]
[1771707764174,2.73315304,85.579,85.548,2.80310469]
[1771707764374,2.73315304,85.579,85.551,2.80310469]
[1771707765182,2.73315304,85.577,85.551,2.80310469]
[1771707766177,2.73315304,85.577,85.553,2.80310469]
[1771707766774,11.68451854,85.584,85.56,2.38424127]
[1771707767078,2.73315304,85.59,85.571,2.80310469]
[1771707767258,2.73315304,85.588,85.561,2.80310469]
[1771707768177,2.73315304,85.588,85.562,2.80310469]
[1771707771576,29.20281867,85.609,85.528,3.69383402]
[1771707771577,2.73315304,85.595,85.571,2.80310469]
[1771707772776,2.73315304,85.6,85.571,14.489268]
[1771707772974,2.73315304,85.6,85.581,2.80310469]
[1771707782993,2.73315304,85.605,85.583,2.80310469]
[1771707785084,2.73315304,85.61,85.583,2.80310469]
[1771707785387,2.73315304,85.61,85.591,2.80310469]
[1771707786078,29.19466615,85.633,85.592,2.80310469]
[1771707786282,0.28432314,85.629,85.601,2.80310469]
[1771707786491,0.14216157,85.629,85.601,2.80310469]
[1771707787478,0.28432314,85.628,85.601,2.80310469]
[1771707788202,2.86831343,85.627,85.601,2.80310469]
[1771707789391,2.86831343,85.627,85.591,2.66740462]
[1771707789700,2.86831343,85.619,85.591,2.66740462]
[1771707790198,2.86831343,85.617,85.581,2.66740462]
[1771707792996,11.6800598,85.616,85.591,2.82768397]
[1771707793194,5.36086188,85.648,85.59,2.38424127]
[1771707793195,2.83315067,85.629,85.595,2.82768397]
[1771707793397,2.83315067,85.627,85.595,2.82768397]
[1771707795587,2.83315067,85.625,85.597,2.82768397]
[1771707795786,2.83315067,85.629,85.597,2.82768397]
[1771707795986,2.83315067,85.627,85.597,2.82768397]
[1771707797109,11.67869572,85.626,85.597,2.82768397]
[1771707797311,2.83315067,85.625,85.597,2.82768397]
[1771707800012,2.83315067,85.623,85.597,2.82768397]
[1771707803119,2.83315067,85.621,85.597,2.82768397]
[1771707812903,2.83315067,85.619,85.597,2.82768397]
[1771707813611,2.83315067,85.619,85.585,2.82768397]
[1771707813813,2.83315067,85.617,85.585,2.82768397]
[1771707814812,2.83315067,85.615,85.585,2.82768397]
[1771707815016,2.83315067,85.615,85.587,2.82768397]
[1771707816209,2.83315067,85.615,85.591,2.82768397]
[1771707816521,3.11747381,85.638,85.601,2.82768397]
[1771707817525,2.83315067,85.633,85.602,2.82768397]
[1771707819412,2.67686865,85.627,85.591,2.75558715]
[1771707819614,2.67686865,85.627,85.592,2.75558715]
[1771707831135,2.67686865,85.625,85.594,2.75558715]
[1771707831516,11.67769544,85.634,85.601,2.75558715]
[1771707831517,2.67686865,85.631,85.601,2.75558715]
[1771707832536,3.69383402,85.664,85.6,2.38369832]
[1771707832537,2.67686865,85.662,85.621,2.75558715]
[1771707832834,58.35062917,85.689,85.621,2.75558715]
[1771707832835,2.67686865,85.659,85.621,2.75558715]
[1771707833333,2.67686865,85.657,85.621,2.75558715]
[1771707833834,11.59214815,85.69,85.641,2.75558715]
[1771707833835,2.67686865,85.673,85.641,2.75558715]
[1771707834035,2.67686865,85.669,85.641,2.75558715]
[1771707834616,2.67686865,85.669,85.642,11.67651386]
[1771707834830,2.67686865,85.669,85.643,2.75558715]
[1771707835233,2.67686865,85.672,85.643,2.75558715]
[1771707836143,0.28432314,85.658,85.62,2.38369832]
[1771707836321,2.67686865,85.657,85.62,2.38369832]
[1771707837044,2.38369832,85.66,85.577,3.69383402]
[1771707837045,2.67686865,85.655,85.61,2.38369832]
[1771707838144,2.67686865,85.655,85.611,2.75558715]
[1771707838528,2.67686865,85.649,85.611,2.75558715]
[1771707841458,2.67686865,85.649,85.613,2.75558715]
[1771707841618,2.67686865,85.64,85.613,2.75558715]
[1771707842523,2.67686865,85.649,85.613,2.75558715]
[1771707843740,2.67686865,85.649,85.615,2.75558715]
[1771707844551,2.67686865,85.649,85.621,2.75558715]
[1771707847751,2.67686865,85.649,85.623,2.92370221]
[1771707852152,2.67686865,85.649,85.625,2.84123213]
[1771707854662,2.67686865,85.649,85.627,2.84123213]
[1771707855244,2.67686865,85.649,85.6,2.38369832]
[1771707855245,2.80379368,85.647,85.594,2.84123213]
[1771707855562,2.80379368,85.647,85.611,2.84123213]
[1771707859156,2.80379368,85.647,85.582,3.69383402]
[1771707859157,2.80379368,85.637,85.604,2.84123213]
[1771707860564,2.80379368,85.635,85.605,2.84123213]
[1771707861564,29.1899213,85.646,85.604,11.68156748]
[1771707861565,2.80379368,85.652,85.631,2.84123213]
[1771707873661,2.80379368,85.649,85.621,11.67937772]
[1771707875770,2.80379368,85.649,85.621,2.84123213]
[1771707877671,2.80379368,85.649,85.623,2.84123213]
[1771707878172,2.80379368,85.649,85.617,11.67982396]
[1771707878678,2.80379368,85.649,85.617,14.728619]
[1771707878988,2.80379368,85.649,85.62,2.38307348]
[1771707879668,40.84061657,85.699,85.624,3.04879504]
[1771707879877,2.38307348,85.68,85.631,3.04879504]
[1771707880062,2.38307348,85.67,85.631,3.04879504]
[1771707880250,0.28432314,85.669,85.631,3.04879504]
[1771707880454,2.38307348,85.68,85.641,3.04879504]
[1771707880669,0.14216157,85.679,85.641,3.04879504]
[1771707880866,0.28432314,85.679,85.641,3.04879504]
[1771707881580,0.14216157,85.679,85.641,3.04879504]
[1771707881777,3.02891074,85.676,85.643,3.04879504]
[1771707889967,3.02891074,85.676,85.642,11.67651386]
[1771707889968,2.83692946,85.674,85.645,2.82952472]
[1771707892263,2.83692946,85.674,85.608,3.69383402]
[1771707892264,2.83692946,85.649,85.611,2.82952472]
[1771707892877,2.83692946,85.649,85.621,2.82952472]
[1771707893483,3.1212526,85.659,85.621,2.82952472]
[1771707893681,3.1212526,85.659,85.631,2.82952472]
[1771707894381,3.1212526,85.657,85.631,2.82952472]
[1771707896787,3.1212526,85.657,85.633,2.82952472]
[1771707896985,14.79575241,85.657,85.633,2.82952472]
[1771707900390,2.38307348,85.67,85.63,14.06342113]
[1771707900391,2.83692946,85.663,85.635,2.82952472]
[1771707900578,2.38307348,85.68,85.634,11.67760468]
[1771707900579,2.83692946,85.669,85.641,2.82952472]
[1771707900778,3.1212526,85.679,85.641,2.82952472]
[1771707901505,2.83692946,85.674,85.643,2.82952472]
[1771707903612,2.83692946,85.672,85.643,2.82952472]
[1771707903893,2.83692946,85.667,85.635,2.82952472]
[1771707905590,2.83692946,85.657,85.63,11.68034765]
[1771707905789,2.83692946,85.657,85.624,11.6788527]
[1771707905994,2.83692946,85.657,85.624,14.50837742]
[1771707906791,11.67460539,85.656,85.625,2.82952472]
[1771707906999,2.83692946,85.655,85.625,2.82952472]
[1771707908084,2.83692946,85.655,85.63,11.6963562]
[1771707911902,11.67487799,85.654,85.63,11.6963562]
[1771707912082,2.87108216,85.653,85.63,11.6963562]
[1771707913295,2.87108216,85.653,85.631,2.9113411]
[1771707915384,11.6751506,85.652,85.62,2.38307348]
[1771707915698,29.18310648,85.666,85.62,2.38307348]
[1771707915699,2.87108216,85.657,85.631,2.9113411]
[1771707917502,2.87108216,85.655,85.631,2.9113411]
[1771707918386,2.87108216,85.662,85.633,2.9113411]
[1771707920791,11.67349184,85.665,85.641,2.9113411]
[1771707920992,2.38307348,85.68,85.641,2.9113411]
[1771707920993,11.67215154,85.675,85.641,2.9113411]
[1771707922901,11.95565834,85.68,85.651,2.9113411]
[1771707926409,14.8267405,85.68,85.651,2.9113411]
[1771707926810,11.67063154,85.686,85.661,2.9113411]
[1771707927299,2.87108216,85.685,85.653,2.9113411]
[1771707933516,2.87108216,85.669,85.645,11.67607922]
[1771707933918,2.87108216,85.669,85.64,2.9113411]
[1771707935205,2.87108216,85.669,85.641,14.5879913]
[1771707935420,2.87108216,85.669,85.642,2.9113411]
[1771707936224,2.87108216,85.669,85.65,2.38066316]
[1771707938929,2.87108216,85.669,85.65,3.11951364]
[1771707940628,3.12081903,85.692,85.661,3.11951364]
[1771707941635,11.67065414,85.685,85.661,3.11951364]
[1771707942230,14.6493116,85.685,85.661,3.11951364]
[1771707943830,2.38066316,85.67,85.643,3.11951364]
[1771707944131,2.97865746,85.669,85.643,3.11951364]
[1771707946035,2.97865746,85.669,85.645,3.11951364]
[1771707947732,2.97865746,85.676,85.647,3.11951364]
[1771707948037,2.97865746,85.676,85.651,3.11951364]
[1771707948231,2.97865746,85.682,85.651,3.11951364]
[1771707949548,2.97865746,85.682,85.653,3.11951364]
[1771707954838,11.67056029,85.686,85.655,3.11951364]
[1771707955025,14.64921775,85.686,85.655,3.11951364]
[1771707955337,2.97865746,85.685,85.655,3.11951364]
[1771707956035,2.97865746,85.685,85.654,11.67487799]
[1771707956235,2.97865746,85.679,85.654,11.67487799]
[1771707957531,2.97865746,85.677,85.645,11.67601218]
[1771707957841,2.97865746,85.677,85.645,14.79552582]
[1771707958138,2.97865746,85.677,85.646,3.11951364]
[1771707961253,2.97865746,85.659,85.634,11.6775389]
[1771707961425,2.97865746,85.657,85.63,11.47938538]
[1771707962647,0.28432314,85.661,85.632,3.11951364]
[1771707963238,0.28432314,85.661,85.63,13.86004854]
[1771707963239,3.2629806,85.667,85.641,3.11951364]
[1771707968438,11.67324259,85.666,85.641,3.11951364]
[1771707968837,3.16401685,85.665,85.634,3.08188357]
[1771707972944,3.16401685,85.665,85.636,3.04865251]
[1771707973851,2.89280503,85.663,85.636,3.04865251]
[1771707982845,0.28432314,85.669,85.638,3.04865251]
[1771707983045,3.17712817,85.669,85.638,3.04865251]
[1771707993151,3.17712817,85.667,85.64,3.04865251]
[1771707995765,2.89280503,85.665,85.64,3.04865251]
[1771707996674,11.67324259,85.666,85.634,3.04865251]
[1771707996675,2.89280503,85.663,85.634,3.04865251]
[1771707996854,2.89280503,85.657,85.63,11.67808982]
[1771707997456,2.89280503,85.657,85.631,3.04865251]
[1771707997847,3.16420335,85.654,85.631,3.04865251]
[1771708000052,3.16420335,85.647,85.624,2.94868247]
[1771708000353,3.16420335,85.647,85.62,2.94868247]
[1771708004649,3.16420335,85.647,85.621,2.94868247]
[1771708006667,30.0,85.655,85.623,2.94868247]
[1771708006874,3.16420335,85.656,85.623,2.94868247]
[1771708009371,3.16420335,85.656,85.625,2.94868247]
[1771708012773,3.16420335,85.656,85.627,2.94868247]
[1771708014084,3.44852649,85.663,85.631,2.94868247]
[1771708014660,3.16420335,85.663,85.631,2.94868247]
[1771708014875,3.16420335,85.663,85.633,2.94868247]
[1771708023280,3.16420335,85.663,85.63,2.38150011]
[1771708023281,3.16420335,85.663,85.635,2.94868247]
[1771708024676,2.38150011,85.66,85.635,2.94868247]
[1771708024879,3.16420335,85.659,85.635,2.94868247]
[1771708025584,3.16420335,85.659,85.636,14.62601443]
[1771708026985,3.16420335,85.659,85.637,2.94868247]
[1771708027870,3.16420335,85.659,85.638,11.67705924]
[1771708028063,2.16420335,85.659,85.639,3.06937467]
[1771708031482,2.84652136,85.664,85.639,3.06937467]
[1771708032185,2.84652136,85.664,85.64,11.67678654]
[1771708032389,2.84652136,85.664,85.641,3.20174233]
[1771708035988,11.9570207,85.67,85.643,3.20174233]
[1771708036692,14.80867475,85.67,85.643,3.20174233]
[1771708036883,0.28432314,85.668,85.643,3.20174233]
[1771708037200,11.67310633,85.667,85.643,3.20174233]
[1771708037375,2.85262675,85.659,85.635,3.20174233]
[1771708038494,2.85360328,85.649,85.629,3.20174233]
[1771708051811,2.86527594,85.647,85.617,11.67990676]
[1771708052006,2.86527594,85.647,85.618,3.20174233]
[1771708052896,11.81785744,85.648,85.602,29.20466011]
[1771708052897,2.86612049,85.639,85.613,3.20174233]
[1771708053906,2.86612049,85.639,85.614,11.68033265]
[1771708054092,2.86612049,85.639,85.615,3.20174233]
[1771708056311,3.15370298,85.629,85.595,3.20174233]
[1771708058002,3.15529344,85.627,85.595,3.20174233]
[1771708059109,2.87175621,85.619,85.595,3.20174233]
[1771708061519,11.67869572,85.626,85.601,2.9490091]
[1771708064117,11.67756049,85.635,85.603,2.9490091]
[1771708065316,14.5537645,85.635,85.605,2.9490091]
[1771708071332,14.5537645,85.635,85.607,2.9490091]
[1771708072132,30.0,85.638,85.611,2.9490091]
[1771708073528,30.0,85.638,85.613,2.9490091]
[1771708074335,11.67632255,85.644,85.613,2.9490091]
[1771708074537,2.88300982,85.643,85.613,2.9490091]
[1771708074838,2.88300982,85.639,85.613,2.9490091]
[1771708075922,2.88300982,85.639,85.615,2.9490091]
[1771708080737,14.17036874,85.7,85.609,2.9490091]
[1771708080738,2.88666276,85.629,85.609,2.9490091]
[1771708081037,3.1709859,85.619,85.58,2.38232282]
[1771708081220,3.1709859,85.619,85.54,58.65196782]
[1771708081221,2.88666276,85.599,85.571,2.9490091]
[1771708081420,2.88727807,85.589,85.571,2.9490091]
[1771708081617,2.88727807,85.589,85.563,2.9490091]
[1771708083222,2.88727807,85.589,85.564,11.68715815]
[1771708083430,2.88727807,85.589,85.565,2.9490091]
[1771708084942,2.88904015,85.587,85.558,2.9490091]
[1771708087637,2.89080802,85.585,85.558,2.9490091]
[1771708088437,2.89198338,85.592,85.56,3.13399353]
[1771708088635,11.68299202,85.595,85.561,3.13399353]
[1771708088830,2.89198338,85.594,85.561,3.13399353]
[1771708093836,3.17671061,85.589,85.561,3.13399353]
[1771708094028,2.89238747,85.576,85.554,3.15294938]
[1771708095651,2.88788946,85.585,85.554,3.15294938]
[1771708097738,2.88349044,85.579,85.55,0.2]
[1771708097938,2.88349044,85.567,85.55,0.2]
[1771708099930,2.87929901,85.565,85.55,0.2]
[1771708101766,14.5595558,85.584,85.552,3.15294938]
[1771708102061,11.68382064,85.589,85.561,3.15294938]
[1771708102264,14.55687338,85.589,85.561,3.15294938]
[1771708102446,2.87305274,85.588,85.561,3.15294938]
[1771708104036,11.68401743,85.587,85.561,3.15294938]
[1771708104956,14.55309046,85.587,85.561,3.15294938]
[1771708106256,14.55309046,85.587,85.541,3.15294938]
[1771708106257,2.86709634,85.569,85.541,3.15294938]
[1771708106457,2.8651558,85.579,85.541,3.15294938]
[1771708108967,2.86132263,85.585,85.551,3.15294938]
[1771708109760,11.68401743,85.587,85.542,40.91557363]
[1771708109761,11.68401743,85.587,85.561,3.15294938]
[1771708110455,2.85755661,85.586,85.561,3.15294938]
[1771708111473,2.85571248,85.584,85.561,3.15294938]
[1771708117665,11.6837444,85.589,85.561,3.15294938]
[1771708118390,2.843317,85.588,85.561,3.15294938]
[1771708120194,2.83836992,85.586,85.561,3.15294938]
[1771708125895,2.83836992,85.586,85.561,14.84048762]
[1771708126094,2.83836992,85.586,85.562,3.14380174]
[1771708135283,2.83836992,85.586,85.564,3.14380174]
[1771708135483,2.81585061,85.595,85.564,3.14380174]
[1771708136293,2.81585061,85.595,85.566,3.14380174]
[1771708138503,2.81175381,85.593,85.568,3.14380174]
[1771708142103,2.80779947,85.591,85.568,3.14380174]
[1771708142892,11.68333489,85.592,85.54,0.2]
[1771708142893,2.80651788,85.579,85.556,3.14380174]
[1771708148918,2.38580446,85.6,85.561,3.20588889]
[1771708149592,2.38580446,85.61,85.561,3.20588889]
[1771708149800,2.38580446,85.62,85.581,3.20588889]
[1771708150118,11.67896851,85.624,85.581,3.20588889]
[1771708150300,0.28432314,85.623,85.581,3.20588889]
[1771708151215,11.67828656,85.629,85.591,3.20588889]
[1771708151395,0.28432314,85.628,85.591,3.20588889]
[1771708153425,11.96070066,85.643,85.601,3.20588889]
[1771708153603,2.38580446,85.64,85.601,3.20588889]
[1771708162541,41.15164446,85.643,85.611,3.20588889]
[1771708162542,11.67692289,85.639,85.611,3.20588889]
[1771708163933,11.67582699,85.648,85.611,3.20588889]
[1771708165928,11.67582699,85.648,85.612,11.68060552]
[1771708166113,11.67582699,85.648,85.613,3.20588889]
[1771708168739,29.18714777,85.655,85.615,3.20588889]
[1771708169038,2.38249715,85.65,85.615,3.20588889]
[1771708172640,11.67555955,85.649,85.617,3.20588889]
[1771708181452,11.67555955,85.649,85.618,11.67978696]
[1771708181641,11.67555955,85.649,85.619,3.20588889]
[1771708187853,2.38249715,85.65,85.621,3.20588889]
[1771708188064,0.28432314,85.654,85.621,3.20588889]
[1771708188946,14.05665791,85.66,85.621,3.20588889]
[1771708189146,0.1,85.67,85.641,3.20588889]
[1771708190241,0.1,85.67,85.643,3.20588889]
[1771708193147,0.1,85.67,85.651,3.20588889]
[1771708195854,0.1,85.7,85.651,3.20588889]
[1771708196053,11.66738615,85.709,85.681,3.15588889]
[1771708196264,0.10123392,85.708,85.681,3.15588889]
[1771708196460,0.10140291,85.699,85.671,11.67245118]
[1771708196668,0.10140291,85.699,85.672,3.15588889]
[1771708197251,0.10140291,85.708,85.672,3.15588889]
[1771708197946,0.10140291,85.708,85.674,3.15588889]
[1771708200473,0.10211949,85.689,85.669,3.15588889]
[1771708205865,0.10287784,85.699,85.669,3.15588889]
[1771708210065,0.10358735,85.698,85.669,3.15588889]
[1771708210574,2.38249715,85.69,85.669,3.15588889]
[1771708215276,0.10206925,85.689,85.655,11.67465022]
[1771708216476,11.77217859,85.689,85.655,11.67465022]
[1771708216673,3.16717812,85.688,85.655,11.67465022]
[1771708217379,3.16717812,85.688,85.656,3.17050292]
[1771708217582,3.16717812,85.686,85.656,3.17050292]
[1771708218063,3.16717812,85.684,85.656,3.17050292]
[1771708223969,3.16717812,85.669,85.641,3.17050292]
[1771708225884,11.67297007,85.668,85.641,3.17050292]
[1771708226085,3.16717812,85.667,85.641,3.17050292]
[1771708227588,3.16717812,85.665,85.641,3.17050292]
[1771708231488,3.16717812,85.663,85.641,3.17050292]
[1771708233192,3.16717812,85.659,85.641,3.17050292]
[1771708233777,2.38172904,85.66,85.621,29.19835246]
[1771708233778,3.16717812,85.657,85.637,3.17050292]
[1771708234186,3.16717812,85.649,85.624,3.17050292]
[1771708235495,3.16717812,85.647,85.624,3.17050292]
[1771708236393,3.16717812,85.645,85.624,3.17050292]
[1771708237886,2.38172904,85.64,85.624,3.17050292]
[1771708238595,3.00899897,85.639,85.624,3.17050292]
[1771708238801,3.00899897,85.639,85.62,2.91500433]
[1771708243089,2.38172904,85.63,85.62,2.91500433]
[1771708243510,2.38172904,85.63,85.605,2.91500433]
[1771708243511,3.00899897,85.629,85.605,2.91500433]
[1771708243793,2.38172904,85.62,85.605,2.91500433]
[1771708243976,5.39072801,85.62,85.605,2.91500433]
[1771708244172,3.00899897,85.619,85.605,2.91500433]
[1771708244602,3.00899897,85.619,85.592,2.91500433]
[1771708244798,3.00899897,85.609,85.592,2.91500433]
[1771708245101,3.00899897,85.599,85.579,2.91500433]
[1771708249699,2.38172904,85.6,85.581,2.91500433]
[1771708249895,3.00899897,85.604,85.581,2.91500433]
[1771708251297,14.69020969,85.608,85.581,2.91500433]
[1771708251798,3.00899897,85.607,85.581,2.91500433]
[1771708253305,14.69042316,85.606,85.581,2.91500433]
[1771708253605,2.38172904,85.6,85.581,2.91500433]
[1771708254324,3.00899897,85.599,85.581,2.91500433]
[1771708254505,3.00899897,85.598,85.568,2.91500433]
[1771708255200,2.38172904,85.59,85.568,2.91500433]
[1771708255391,5.39072801,85.59,85.568,2.91500433]
[1771708256306,3.00899897,85.589,85.568,2.91500433]
[1771708260705,3.00899897,85.62,85.57,2.91500433]
[1771708260884,3.00899897,85.619,85.581,2.91500433]
[1771708261086,2.38172904,85.61,85.581,2.91500433]
[1771708261599,3.00899897,85.609,85.581,2.91500433]
[1771708262101,11.68115129,85.608,85.581,2.91500433]
[1771708262298,14.69015026,85.608,85.581,2.91500433]
[1771708264291,3.00899897,85.607,85.581,2.91500433]
[1771708269109,11.68142419,85.606,85.581,2.91500433]
[1771708269325,2.93479953,85.619,85.583,2.9305291]
[1771708269609,2.93479953,85.599,85.583,2.9305291]
[1771708269908,2.38172904,85.59,85.567,2.9305291]
[1771708270109,2.93479953,85.589,85.567,2.9305291]
[1771708273215,2.93479953,85.589,85.569,3.03330328]
[1771708273519,3.178313,85.595,85.569,3.03330328]
[1771708280597,3.178313,85.593,85.569,3.03330328]
[1771708285838,0.28432314,85.601,85.571,3.03330328]
[1771708286005,3.32047457,85.6,85.571,3.03330328]
[1771708286209,3.178313,85.599,85.571,3.03330328]
[1771708288010,3.178313,85.597,85.571,3.03330328]
[1771708288318,3.178313,85.589,85.551,3.03330328]
[1771708289125,3.178313,85.589,85.552,3.03330328]
[1771708289530,0.28432314,85.602,85.571,3.03330328]
[1771708290203,0.28432314,85.6,85.571,3.03330328]
[1771708290403,3.46263614,85.6,85.571,3.03330328]
[1771708291719,3.178313,85.598,85.565,11.68701856]
[1771708291909,3.178313,85.598,85.566,3.03330328]
[1771708293813,3.178313,85.589,85.552,3.03330328]
[1771708295724,3.178313,85.586,85.553,11.68866083]
[1771708295916,3.178313,85.586,85.554,3.03330328]
[1771708297819,2.95714948,85.584,85.554,3.03330328]
[1771708300335,0.28432314,85.581,85.554,3.03330328]
[1771708300632,2.95714948,85.58,85.554,3.03330328]
[1771708301141,2.95714948,85.579,85.554,3.03330328]
[1771708302127,2.95714948,85.577,85.554,3.03330328]
[1771708303426,11.6855193,85.576,85.554,3.03330328]
[1771708305832,11.6837444,85.589,85.561,3.05214672]
[1771708306021,2.95714948,85.588,85.551,3.05214672]
[1771708307430,11.6837444,85.589,85.56,2.38511273]
[1771708307614,11.6837444,85.589,85.561,3.05214672]
[1771708307812,0.28432314,85.591,85.561,3.05214672]
[1771708308318,2.95714948,85.59,85.561,3.05214672]
[1771708312342,2.95714948,85.588,85.561,3.05214672]
[1771708313843,2.95714948,85.586,85.55,0.2]
[1771708314020,2.95714948,85.586,85.54,0.2]
[1771708314021,2.95714948,85.555,85.531,3.05214672]
[1771708314219,2.95714948,85.549,85.521,3.05214672]
[1771708314433,2.95714948,85.549,85.531,3.05214672]
[1771708314740,3.24147262,85.569,85.531,3.05214672]
[1771708316045,3.24147262,85.567,85.531,3.05214672]
[1771708320947,2.95714948,85.567,85.531,3.05214672]
[1771708321126,14.64225914,85.579,85.541,3.05214672]
[1771708321323,2.95714948,85.578,85.541,3.05214672]
[1771708322223,2.95714948,85.578,85.551,3.05214672]
[1771708323725,11.68538275,85.577,85.551,3.05214672]
[1771708324119,14.64253223,85.577,85.551,3.05214672]
[1771708324521,14.64253223,85.577,85.56,5.43725945]
[1771708324848,14.64253223,85.577,85.56,3.05214672]
[1771708325232,11.68538275,85.577,85.56,3.05214672]
[1771708325543,0.28432314,85.59,85.561,3.05214672]
[1771708325930,0.14216157,85.583,85.541,3.05214672]
[1771708326246,2.95714948,85.58,85.541,3.05214672]
[1771708327929,3.15820431,85.578,85.542,2.95175184]
[1771708331445,3.08495575,85.576,85.544,2.97155008]
[1771708333646,3.08495575,85.574,85.551,2.97155008]
[1771708335944,11.68592897,85.573,85.551,2.97155008]
[1771708338637,3.08495575,85.578,85.551,2.97155008]
[1771708339237,3.08495575,85.588,85.561,2.97155008]
[1771708340252,11.68401743,85.587,85.561,2.97155008]
[1771708344464,3.08482978,85.587,85.561,2.97155008]
[1771708346357,3.0739734,85.598,85.561,2.97155008]
[1771708346559,3.0739734,85.598,85.56,2.38511273]
[1771708346560,3.0739734,85.598,85.563,2.97155008]
[1771708347358,3.06864098,85.596,85.565,2.97155008]
[1771708348446,11.68265242,85.597,85.57,2.38510664]
[1771708348650,11.68265242,85.597,85.571,2.97155008]
[1771708349156,3.06334497,85.596,85.571,2.97155008]
[1771708349558,3.0581163,85.594,85.571,2.97155008]
[1771708351577,3.0581163,85.594,85.572,2.97155008]
[1771708353453,3.03793884,85.598,85.572,2.97155008]
[1771708357349,11.68169108,85.605,85.574,2.97155008]
[1771708359482,3.69383402,85.626,85.55,2.38510664]
[1771708359483,2.78007931,85.612,85.581,2.95372508]
[1771708360653,2.78007931,85.612,85.583,2.95372508]
[1771708364367,2.78007931,85.617,85.585,2.95372508]
[1771708364873,2.78007931,85.609,85.585,2.95372508]
[1771708371074,2.78007931,85.613,85.586,11.68415395]
[1771708371377,2.78007931,85.613,85.587,2.95372508]
[1771708372881,11.68060552,85.612,85.587,2.95372508]
[1771708373081,14.46068483,85.612,85.587,2.95372508]
[1771708373379,2.78007931,85.611,85.587,2.95372508]
[1771708378875,2.78007931,85.616,85.591,2.95372508]
[1771708382389,14.46027553,85.615,85.591,2.95372508]
[1771708382770,2.78007931,85.614,85.591,2.95372508]
[1771708387177,11.68046908,85.613,85.591,2.95372508]
[1771708387365,14.46054839,85.613,85.591,2.95372508]
[1771708390991,2.72782512,85.618,85.591,2.95372508]
[1771708397076,41.15975816,85.626,85.591,2.95372508]
[1771708397077,2.72782512,85.636,85.591,2.95372508]
[1771708397278,2.72782512,85.636,85.593,2.96428029]
[1771708397279,2.72782512,85.635,85.593,2.96428029]
[1771708397595,2.72782512,85.629,85.593,2.96428029]
[1771708398205,2.72782512,85.627,85.593,2.96428029]
[1771708401191,2.72782512,85.625,85.593,2.96428029]
[1771708402806,2.72782512,85.623,85.593,2.96428029]
[1771708406891,3.69383402,85.647,85.593,2.96428029]
[1771708406892,2.72782512,85.638,85.601,2.96428029]
[1771708407092,2.72782512,85.638,85.611,2.96428029]
[1771708409716,11.6771956,85.637,85.611,2.96428029]
[1771708412807,14.40435099,85.642,85.613,2.96428029]
[1771708413702,2.72782512,85.641,85.613,2.96428029]
[1771708415012,2.72782512,85.641,85.612,10.15190781]
[1771708417014,2.72782512,85.659,85.621,2.96428029]
[1771708418320,29.18166885,85.671,85.62,2.38276868]
[1771708418321,2.85320086,85.656,85.623,2.81878078]
[1771708419694,2.85320086,85.654,85.631,2.81878078]
[1771708421499,2.85320086,85.66,85.631,2.81878078]
[1771708422620,2.85320086,85.66,85.633,2.81878078]
[1771708425716,2.85320086,85.66,85.635,2.81878078]
[1771708427497,2.85320086,85.666,85.641,2.81878078]
[1771708430216,2.85320086,85.664,85.641,2.81878078]
[1771708431521,2.85320086,85.662,85.641,2.81878078]
[1771708434457,2.85320086,85.669,85.642,2.81878078]
[1771708435135,2.95320086,85.68,85.652,2.81878078]
[1771708435424,2.95320086,85.68,85.632,2.81878078]
[1771708435425,2.85320086,85.669,85.632,2.81878078]
[1771708436602,2.85320086,85.667,85.632,2.81878078]
[1771708436806,2.85320086,85.667,85.63,2.38276868]
[1771708437027,2.38276868,85.65,85.622,2.81878078]
[1771708437212,2.85320086,85.649,85.622,2.81878078]
[1771708438232,2.85320086,85.647,85.622,2.81878078]
[1771708439329,2.85320086,85.645,85.622,2.81878078]
[1771708440327,2.85320086,85.643,85.611,2.81878078]
[1771708442958,2.85320086,85.639,85.611,2.81878078]
[1771708445148,2.85320086,85.637,85.611,2.81878078]
[1771708446140,2.85320086,85.629,85.599,2.81878078]
[1771708448129,2.65610187,85.628,85.599,2.81878078]